[Event "Couzeix rapide 9 rondes cadences multiples"]
[Site "Couzeix Chess Club, France"]
[Date "2019.03.10"]
[Round "7.3"]
[White "Jackson, Edgar"]
[Black "Boisseau, David"]
[Result "1/2-1/2"]
[TimeControl "5'+10''pm,  7'+10''pm, 10'+10''pm,"]
[WhiteElo "1701"]
[BlackElo "1803"]

1. d4 {[%clk 00:10:19]} e6 {[%clk 00:10:18]} {[%emt 00:00:02]} 2. c4 {[%clk
00:10:26]} {[%emt 00:00:02]} d5 {[%clk 00:10:27]} {[%emt 00:00:01]} 3. Nc3
{[%clk 00:10:33]} {[%emt 00:00:02]} f5 {[%clk 00:10:37]} 4. Nf3 {[%clk
00:10:30]} {[%emt 00:00:13]} Nf6 {[%clk 00:10:45]} {[%emt 00:00:02]} 5. Bg5
{[%clk 00:09:35]} {[%emt 00:01:05]} c6 {[%clk 00:10:53]} {[%emt 00:00:02]} 6.
e3 {[%clk 00:09:24]} {[%emt 00:00:20]} Bd6 {[%clk 00:11:02]} {[%emt 00:00:02]}
7. Be2 {[%clk 00:08:41]} {[%emt 00:00:53]} O-O {[%clk 00:11:08]} {[%emt
00:00:04]} 8. Ne5 {[%clk 00:08:09]} {[%emt 00:00:42]} Qe8 {[%clk 00:11:15]}
{[%emt 00:00:03]} 9. O-O {[%clk 00:07:59]} {[%emt 00:00:20]} Ne4 {[%clk
00:11:10]} {[%emt 00:00:16]} 10. Nxe4 {[%clk 00:07:40]} {[%emt 00:00:28]} fxe4
{[%clk 00:11:18]} {[%emt 00:00:02]} 11. Bh5 {[%clk 00:06:59]} {[%emt 00:00:51]}
g6 {[%clk 00:11:25]} {[%emt 00:00:04]} 12. Bg4 {[%clk 00:06:34]} {[%emt
00:00:34]} Bxe5 {[%clk 00:11:31]} {[%emt 00:00:05]} 13. dxe5 {[%clk 00:06:41]}
{[%emt 00:00:03]} Nd7 {[%clk 00:11:40]} {[%emt 00:00:01]} 14. Bf4 {[%clk
00:05:18]} {[%emt 00:01:33]} Nc5 {[%clk 00:11:48]} {[%emt 00:00:02]} 15. Be2
{[%clk 00:05:08]} {[%emt 00:00:20]} Qe7 {[%clk 00:11:35]} {[%emt 00:00:23]} 16.
b4 {[%clk 00:04:44]} {[%emt 00:00:34]} Na6 {[%clk 00:11:23]} {[%emt 00:00:23]}
17. a3 {[%clk 00:04:43]} {[%emt 00:00:11]} Nc7 {[%clk 00:11:30]} {[%emt
00:00:03]} 18. f3 {[%clk 00:03:40]} {[%emt 00:01:12]} exf3 {[%clk 00:10:26]}
{[%emt 00:01:14]} 19. Rxf3 {[%clk 00:03:44]} {[%emt 00:00:06]} b6 {[%clk
00:10:22]} {[%emt 00:00:15]} 20. Rg3 {[%clk 00:03:46]} {[%emt 00:00:07]} Ne8
{[%clk 00:10:15]} {[%emt 00:00:18]} 21. Qc2 {[%clk 00:03:19]} {[%emt 00:00:37]}
Ng7 {[%clk 00:10:02]} {[%emt 00:00:23]} 22. Bg5 {[%clk 00:02:58]} {[%emt
00:00:28]} Qc7 {[%clk 00:09:09]} {[%emt 00:01:06]} 23. cxd5 {[%emt 00:00:42]}
exd5 {[%clk 00:09:16]} 24. Bf6 {[%clk 00:02:05]} {[%emt 00:00:34]} Bf5 {[%clk
00:07:56]} {[%emt 00:01:30]} 25. Qc3 {[%clk 00:01:57]} {[%emt 00:00:18]} Be4
{[%clk 00:07:54]} {[%emt 00:00:12]} 26. Bf3 {[%clk 00:01:51]} {[%emt 00:00:16]}
Bxf3 {[%clk 00:07:21]} {[%emt 00:00:43]} 27. gxf3 {[%clk 00:01:58]} {[%emt
00:00:04]} Nh5 {[%clk 00:06:48]} {[%emt 00:00:43]} 28. Rg5 {[%clk 00:01:54]}
{[%emt 00:00:14]} Nxf6 {[%clk 00:06:53]} {[%emt 00:00:05]} 29. exf6 {[%clk
00:01:57]} {[%emt 00:00:06]} Rac8 {[%clk 00:07:00]} {[%emt 00:00:03]} 30. h4
{[%clk 00:01:43]} {[%emt 00:00:25]} Qd6 {[%clk 00:07:07]} {[%emt 00:00:02]} 31.
f4 {[%clk 00:01:06]} {[%emt 00:00:47]} Qxf6 {[%clk 00:07:15]} {[%emt 00:00:02]}
32. Qxf6 {[%clk 00:00:42]} {[%emt 00:00:34]} Rxf6 {[%clk 00:07:23]} 33. Rd1
{[%clk 00:00:49]} {[%emt 00:00:04]} Re8 {[%clk 00:07:24]} {[%emt 00:00:08]} 34.
Kf2 {[%clk 00:00:52]} {[%emt 00:00:07]} Kf7 {[%clk 00:07:12]} {[%emt 00:00:23]}
35. h5 {[%clk 00:00:36]} {[%emt 00:00:26]} Ree6 {[%clk 00:07:05]} {[%emt
00:00:17]} 36. Rdg1 {[%clk 00:00:20]} {[%emt 00:00:26]} Rf5 {[%clk 00:05:59]}
{[%emt 00:01:16]} 37. hxg6+ {[%clk 00:00:14]} {[%emt 00:00:16]} hxg6 {[%clk
00:06:06]} {[%emt 00:00:03]} 38. Rh1 {[%clk 00:00:15]} {[%emt 00:00:10]} Rxg5
{[%clk 00:06:06]} {[%emt 00:00:09]} 39. fxg5 {[%clk 00:00:23]} {[%emt
00:00:01]} Kg7 {[%clk 00:06:14]} {[%emt 00:00:03]} 40. Kf3 {[%clk 00:00:20]}
{[%emt 00:00:13]} Re5 {[%clk 00:06:16]} {[%emt 00:00:08]} 41. Kf4 {[%clk
00:00:22]} {[%emt 00:00:07]} Re4+ {[%clk 00:06:11]} {[%emt 00:00:15]} 42. Kf3
{[%clk 00:00:31]} {[%emt 00:00:01]} Rc4 {[%clk 00:06:14]} {[%emt 00:00:06]} 43.
Rf1 {[%clk 00:00:15]} {[%emt 00:00:27]} Rc3 {[%clk 00:06:22]} {[%emt 00:00:02]}
44. Ke2 {[%clk 00:00:22]} {[%emt 00:00:02]} Rxa3 {[%clk 00:06:30]} {[%emt
00:00:03]} 45. Rf6 {[%clk 00:00:31]} Rc3 {[%clk 00:06:38]} {[%emt 00:00:02]} 46.
Rd6 {[%clk 00:00:36]} {[%emt 00:00:05]} Rc4 {[%clk 00:06:41]} {[%emt 00:00:06]}
47. b5 {[%clk 00:00:33]} {[%emt 00:00:14]} cxb5 {[%clk 00:06:29]} {[%emt
00:00:22]} 48. Rxd5 {[%clk 00:00:41]} {[%emt 00:00:02]} Rc5 {[%clk 00:06:37]}
{[%emt 00:00:01]} 49. Rd7+ {[%clk 00:00:51]} {[%emt 00:00:02]} Kf8 {[%clk
00:06:44]} {[%emt 00:00:02]} 50. Rxa7 {[%clk 00:00:59]} {[%emt 00:00:02]} Rxg5
{[%clk 00:06:51]} {[%emt 00:00:03]} 51. Rb7 {[%clk 00:01:08]} {[%emt 00:00:02]}
Re5 {[%clk 00:06:50]} {[%emt 00:00:10]} 52. Rxb6 {[%clk 00:01:15]} {[%emt
00:00:03]} Kf7 {[%clk 00:07:00]} 53. Kf3 {[%clk 00:01:21]} {[%emt 00:00:04]} g5
{[%clk 00:06:02]} {[%emt 00:01:08]} 54. Kg4 {[%clk 00:01:17]} {[%emt 00:00:13]}
1/2-1/2

[Event "Couzeix rapide 9 rondes cadences multiples"]
[Site "Couzeix Chess Club, France"]
[Date "2019.03.10"]
[Round "7.4"]
[White "Pottier, Simeon"]
[Black "Mace, Emmanuel"]
[Result "0-1"]
[TimeControl "5'+10''pm,  7'+10''pm, 10'+10''pm,"]
[WhiteElo "2151"]
[BlackElo "1724"]

1. d4 {[%clk 00:10:18]} {[%emt 00:00:01]} d5 {[%clk 00:10:20]} 2. c4 {[%clk
00:10:27]} c6 {[%clk 00:10:29]} 3. Nc3 {[%clk 00:10:36]} {[%emt 00:00:01]} Nf6
{[%clk 00:10:37]} 4. Nf3 {[%clk 00:10:45]} {[%emt 00:00:01]} a6 {[%clk
00:10:47]} {[%emt 00:00:01]} 5. c5 {[%clk 00:10:52]} {[%emt 00:00:03]} Nbd7
{[%clk 00:10:42]} {[%emt 00:00:15]} 6. Bf4 {[%clk 00:10:57]} {[%emt 00:00:05]}
Nh5 {[%clk 00:10:35]} {[%emt 00:00:16]} 7. Be5 {[%clk 00:10:34]} {[%emt
00:00:32]} f6 {[%clk 00:10:29]} {[%emt 00:00:16]} 8. Bg3 {[%clk 00:10:38]}
{[%emt 00:00:07]} Nxg3 {[%clk 00:10:33]} {[%emt 00:00:06]} 9. hxg3 {[%clk
00:10:47]} {[%emt 00:00:01]} g6 {[%clk 00:10:29]} {[%emt 00:00:14]} 10. Nh4
{[%clk 00:10:03]} {[%emt 00:00:54]} Bg7 {[%clk 00:10:37]} {[%emt 00:00:03]} 11.
e4 {[%clk 00:09:38]} {[%emt 00:00:35]} e6 {[%clk 00:10:27]} {[%emt 00:00:19]}
12. Bd3 {[%clk 00:09:23]} {[%emt 00:00:26]} f5 {[%clk 00:08:36]} {[%emt
00:02:01]} 13. exf5 {[%clk 00:07:08]} {[%emt 00:02:25]} exf5 {[%clk 00:08:42]}
{[%emt 00:00:04]} 14. Be2 {[%clk 00:06:27]} {[%emt 00:00:51]} Qf6 {[%clk
00:08:04]} {[%emt 00:00:48]} 15. O-O {[%clk 00:05:58]} {[%emt 00:00:39]} Qxd4
{[%clk 00:07:58]} {[%emt 00:00:17]} 16. Bd3 {[%clk 00:04:56]} {[%emt 00:01:12]}
O-O {[%clk 00:07:02]} {[%emt 00:01:06]} 17. Rc1 {[%clk 00:04:53]} {[%emt
00:00:13]} Nxc5 {[%clk 00:06:49]} {[%emt 00:00:23]} 18. Bb1 {[%clk 00:03:32]}
{[%emt 00:01:31]} Qxd1 {[%clk 00:06:38]} {[%emt 00:00:21]} 19. Rcxd1 {[%clk
00:03:33]} {[%emt 00:00:09]} Ne4 {[%clk 00:06:32]} {[%emt 00:00:15]} 20. Bxe4
{[%clk 00:02:57]} {[%emt 00:00:47]} fxe4 {[%clk 00:06:39]} {[%emt 00:00:03]} 21.
f4 {[%clk 00:02:47]} {[%emt 00:00:20]} Bg4 {[%clk 00:05:52]} {[%emt 00:00:56]}
22. Rde1 {[%clk 00:02:36]} {[%emt 00:00:22]} b5 {[%clk 00:05:20]} {[%emt
00:00:41]} 23. Rc1 {[%clk 00:01:58]} {[%emt 00:00:49]} Rac8 {[%clk 00:05:11]}
{[%emt 00:00:18]} 24. b4 {[%clk 00:02:00]} {[%emt 00:00:09]} e3 {[%clk
00:03:37]} {[%emt 00:01:43]} 25. Nf3 {[%clk 00:01:40]} {[%emt 00:00:30]} Bxf3
{[%clk 00:03:12]} {[%emt 00:00:35]} 26. Rxf3 {[%clk 00:01:33]} {[%emt
00:00:18]} d4 {[%clk 00:03:17]} {[%emt 00:00:04]} 27. Nd1 {[%clk 00:01:31]}
{[%emt 00:00:12]} e2 {[%clk 00:02:23]} {[%emt 00:01:03]} 28. Nf2 {[%clk
00:01:40]} {[%emt 00:00:02]} Rfe8 {[%clk 00:02:07]} {[%emt 00:00:25]} 29. Nd3
{[%clk 00:01:46]} {[%emt 00:00:05]} Re3 {[%clk 00:01:07]} {[%emt 00:01:10]} 30.
Rxe3 {[%clk 00:01:42]} {[%emt 00:00:13]} dxe3 {[%clk 00:01:16]} {[%emt
00:00:02]} 31. Rc2 {[%clk 00:00:18]} {[%emt 00:01:34]} Rd8 {[%clk 00:01:24]}
{[%emt 00:00:02]} 32. Ne1 {[%clk 00:00:25]} {[%emt 00:00:04]} Rd2 {[%clk
00:01:30]} {[%emt 00:00:04]} 33. Kh2 {[%clk 00:00:22]} {[%emt 00:00:13]} Rxc2
{[%clk 00:01:35]} {[%emt 00:00:05]} 34. Nxc2 {[%clk 00:00:31]} Bc3 {[%clk
00:01:44]} 0-1

[Event "Couzeix rapide 9 rondes cadences multiples"]
[Site "Couzeix Chess Club, France"]
[Date "2019.03.10"]
[Round "8.1"]
[White "Girel, Joseph"]
[Black "Jackson, Thomas"]
[Result "1/2-1/2"]
[TimeControl "5'+10''pm,  7'+10''pm, 10'+10''pm,"]
[WhiteElo "2220"]
[BlackElo "2106"]

1. d4 {[%clk 00:10:19]} Nf6 {[%clk 00:10:19]} {[%emt 00:00:02]} 2. c4 {[%clk
00:10:28]} {[%emt 00:00:01]} e6 {[%clk 00:10:28]} 3. Nf3 {[%clk 00:10:37]}
{[%emt 00:00:01]} b6 {[%clk 00:10:36]} {[%emt 00:00:01]} 4. g3 {[%clk
00:10:45]} {[%emt 00:00:01]} Ba6 {[%clk 00:10:45]} {[%emt 00:00:01]} 5. Qc2
{[%clk 00:10:53]} {[%emt 00:00:02]} c5 {[%clk 00:10:42]} {[%emt 00:00:13]} 6.
Bg2 {[%clk 00:11:01]} {[%emt 00:00:02]} Bb7 {[%clk 00:10:44]} {[%emt 00:00:07]}
7. O-O {[%clk 00:11:03]} {[%emt 00:00:07]} cxd4 {[%clk 00:10:52]} {[%emt
00:00:02]} 8. Nxd4 {[%clk 00:11:11]} {[%emt 00:00:03]} Bxg2 {[%clk 00:11:00]}
{[%emt 00:00:03]} 9. Kxg2 {[%clk 00:11:19]} {[%emt 00:00:02]} Nc6 {[%clk
00:11:07]} {[%emt 00:00:02]} 10. Nxc6 {[%clk 00:11:21]} {[%emt 00:00:08]} dxc6
{[%clk 00:11:16]} {[%emt 00:00:01]} 11. Rd1 {[%clk 00:11:30]} Qc7 {[%clk
00:11:23]} {[%emt 00:00:02]} 12. Nc3 {[%clk 00:11:36]} {[%emt 00:00:06]} Bc5
{[%clk 00:11:22]} {[%emt 00:00:10]} 1/2-1/2

[Event "Couzeix rapide 9 rondes cadences multiples"]
[Site "Couzeix Chess Club, France"]
[Date "2019.03.10"]
[Round "8.2"]
[White "Mace, Emmanuel"]
[Black "Dubreuil, Remy"]
[Result "1-0"]
[TimeControl "5'+10''pm,  7'+10''pm, 10'+10''pm,"]
[WhiteElo "1724"]
[BlackElo "1714"]

1. e4 {[%clk 00:10:18]} e6 {[%clk 00:10:19]} {[%emt 00:00:02]} 2. d4 {[%clk
00:10:27]} {[%emt 00:00:01]} d5 {[%clk 00:10:27]} {[%emt 00:00:02]} 3. Nd2
{[%clk 00:10:36]} {[%emt 00:00:01]} c5 {[%clk 00:10:35]} {[%emt 00:00:02]} 4.
exd5 {[%clk 00:10:43]} {[%emt 00:00:03]} exd5 {[%clk 00:10:42]} {[%emt
00:00:02]} 5. dxc5 {[%clk 00:10:51]} {[%emt 00:00:02]} Bxc5 {[%clk 00:10:49]}
{[%emt 00:00:02]} 6. Bb5+ {[%clk 00:10:53]} {[%emt 00:00:09]} Bd7 {[%clk
00:10:44]} {[%emt 00:00:14]} 7. Qe2+ {[%clk 00:10:53]} {[%emt 00:00:10]} Ne7
{[%clk 00:10:39]} {[%emt 00:00:16]} 8. Bxd7+ {[%clk 00:11:00]} {[%emt
00:00:02]} Nxd7 {[%clk 00:10:46]} {[%emt 00:00:02]} 9. Ngf3 {[%clk 00:11:08]}
{[%emt 00:00:02]} O-O {[%clk 00:10:52]} {[%emt 00:00:04]} 10. O-O {[%clk
00:11:13]} {[%emt 00:00:05]} Ng6 {[%clk 00:10:52]} {[%emt 00:00:09]} 11. Nb3
{[%clk 00:11:14]} {[%emt 00:00:09]} Bb6 {[%clk 00:10:17]} {[%emt 00:00:45]} 12.
c3 {[%clk 00:11:14]} {[%emt 00:00:11]} Nf6 {[%clk 00:10:23]} {[%emt 00:00:04]}
13. Bg5 {[%clk 00:10:52]} {[%emt 00:00:32]} Qd6 {[%clk 00:10:07]} {[%emt
00:00:26]} 14. Bxf6 {[%clk 00:10:48]} {[%emt 00:00:14]} Qxf6 {[%clk 00:10:15]}
{[%emt 00:00:02]} 15. Qd2 {[%clk 00:10:50]} {[%emt 00:00:08]} Rad8 {[%clk
00:10:03]} {[%emt 00:00:22]} 16. Nbd4 {[%clk 00:10:52]} {[%emt 00:00:09]} Nf4
{[%clk 00:09:44]} {[%emt 00:00:28]} 17. Rad1 {[%clk 00:10:15]} {[%emt
00:00:47]} Bc7 {[%clk 00:09:20]} {[%emt 00:00:34]} 18. Qc2 {[%clk 00:09:57]}
{[%emt 00:00:28]} g6 {[%clk 00:09:05]} {[%emt 00:00:25]} 19. Rfe1 {[%clk
00:08:36]} {[%emt 00:01:31]} Rfe8 {[%clk 00:08:46]} {[%emt 00:00:28]} 20. Rxe8+
{[%clk 00:07:47]} {[%emt 00:00:59]} Rxe8 {[%clk 00:08:54]} {[%emt 00:00:02]} 21.
Qa4 {[%clk 00:07:49]} {[%emt 00:00:08]} Ra8 {[%clk 00:08:20]} {[%emt 00:00:43]}
22. Qd7 {[%clk 00:07:33]} {[%emt 00:00:27]} Qd6 {[%clk 00:07:22]} {[%emt
00:01:07]} 23. Qxd6 {[%clk 00:07:34]} {[%emt 00:00:11]} Bxd6 {[%clk 00:07:30]}
{[%emt 00:00:02]} 24. g3 {[%clk 00:07:37]} {[%emt 00:00:07]} Ne6 {[%clk
00:06:59]} {[%emt 00:00:40]} 25. Nb5 {[%clk 00:07:44]} {[%emt 00:00:04]} Bc5
{[%clk 00:07:00]} {[%emt 00:00:09]} 26. Rxd5 {[%clk 00:07:43]} {[%emt
00:00:11]} a6 {[%clk 00:06:44]} {[%emt 00:00:23]} 27. Nbd4 {[%clk 00:07:47]}
{[%emt 00:00:09]} Ba7 {[%clk 00:06:13]} {[%emt 00:00:39]} 28. Nxe6 {[%clk
00:07:27]} {[%emt 00:00:30]} fxe6 {[%clk 00:06:21]} {[%emt 00:00:02]} 29. Rd7
{[%clk 00:07:33]} {[%emt 00:00:05]} e5 {[%clk 00:05:24]} {[%emt 00:01:07]} 30.
Nxe5 {[%clk 00:07:12]} {[%emt 00:00:31]} Rf8 {[%clk 00:05:22]} {[%emt
00:00:11]} 31. Nd3 {[%clk 00:07:20]} {[%emt 00:00:02]} Rb8 {[%clk 00:05:00]}
{[%emt 00:00:31]} 32. Kg2 {[%clk 00:07:19]} {[%emt 00:00:12]} Bb6 {[%clk
00:05:08]} {[%emt 00:00:03]} 33. f4 {[%clk 00:07:02]} {[%emt 00:00:26]} a5
{[%clk 00:04:53]} {[%emt 00:00:23]} 34. Ne5 {[%clk 00:06:50]} {[%emt 00:00:25]}
Be3 {[%clk 00:04:46]} {[%emt 00:00:16]} 35. b3 {[%clk 00:06:36]} {[%emt
00:00:25]} Bc1 {[%clk 00:04:45]} {[%emt 00:00:11]} 36. c4 {[%clk 00:06:16]}
{[%emt 00:00:31]} Bb2 {[%clk 00:04:46]} {[%emt 00:00:08]} 37. Nd3 {[%clk
00:05:54]} {[%emt 00:00:33]} Bc3 {[%clk 00:04:38]} {[%emt 00:00:17]} 38. Nc5
{[%clk 00:05:44]} {[%emt 00:00:20]} b6 {[%clk 00:04:24]} {[%emt 00:00:24]} 39.
Ne4 {[%clk 00:05:40]} {[%emt 00:00:15]} Bb2 {[%clk 00:04:16]} {[%emt 00:00:18]}
40. Rd5 {[%clk 00:05:36]} {[%emt 00:00:14]} Re8 {[%clk 00:04:16]} {[%emt
00:00:10]} 41. Kf3 {[%clk 00:05:45]} {[%emt 00:00:01]} Ra8 {[%clk 00:04:03]}
{[%emt 00:00:22]} 42. Rd6 {[%clk 00:04:51]} {[%emt 00:01:04]} a4 {[%clk
00:03:48]} {[%emt 00:00:26]} 43. Rxb6 {[%clk 00:04:56]} {[%emt 00:00:06]} axb3
{[%clk 00:03:54]} {[%emt 00:00:03]} 44. axb3 {[%clk 00:05:04]} {[%emt
00:00:02]} Ra1 {[%clk 00:03:43]} {[%emt 00:00:21]} 45. c5 {[%clk 00:04:53]}
{[%emt 00:00:22]} Rf1+ {[%clk 00:03:30]} {[%emt 00:00:22]} 46. Ke2 {[%clk
00:04:53]} {[%emt 00:00:10]} Rh1 {[%clk 00:03:32]} {[%emt 00:00:07]} 47. h4
{[%clk 00:04:59]} {[%emt 00:00:04]} Rg1 {[%clk 00:03:15]} {[%emt 00:00:28]} 48.
c6 {[%clk 00:04:43]} {[%emt 00:00:27]} Bd4 {[%clk 00:03:14]} {[%emt 00:00:11]}
49. Rb8+ {[%clk 00:04:46]} {[%emt 00:00:07]} 1-0

[Event "Couzeix rapide 9 rondes cadences multiples"]
[Site "Couzeix Chess Club, France"]
[Date "2019.03.10"]
[Round "8.3"]
[White "Boisseau, David"]
[Black "Charles, Alexandre"]
[Result "1-0"]
[TimeControl "5'+10''pm,  7'+10''pm, 10'+10''pm,"]
[WhiteElo "1803"]
[BlackElo "1750"]

1. d4 {[%clk 00:10:17]} {[%emt 00:00:02]} Nf6 {[%clk 00:10:11]} {[%emt
00:00:09]} 2. c3 {[%clk 00:10:25]} {[%emt 00:00:02]} e6 {[%clk 00:10:10]}
{[%emt 00:00:12]} 3. Bg5 {[%clk 00:10:30]} {[%emt 00:00:04]} d5 {[%clk
00:10:05]} {[%emt 00:00:16]} 4. e3 {[%clk 00:10:38]} {[%emt 00:00:03]} Be7
{[%clk 00:10:00]} {[%emt 00:00:15]} 5. Bd3 {[%clk 00:10:41]} {[%emt 00:00:06]}
h6 {[%clk 00:09:58]} {[%emt 00:00:12]} 6. Bxf6 {[%clk 00:10:48]} {[%emt
00:00:02]} Bxf6 {[%clk 00:10:05]} {[%emt 00:00:03]} 7. f4 {[%clk 00:10:57]}
Bh4+ {[%clk 00:10:10]} {[%emt 00:00:05]} 8. g3 {[%clk 00:11:06]} {[%emt
00:00:01]} Be7 {[%clk 00:10:19]} {[%emt 00:00:01]} 9. Nf3 {[%clk 00:11:14]}
{[%emt 00:00:01]} Nd7 {[%clk 00:10:15]} {[%emt 00:00:13]} 10. Nbd2 {[%clk
00:11:21]} {[%emt 00:00:03]} b6 {[%clk 00:09:18]} {[%emt 00:01:08]} 11. Qe2
{[%clk 00:11:26]} {[%emt 00:00:04]} c5 {[%clk 00:09:08]} {[%emt 00:00:21]} 12.
O-O {[%clk 00:11:28]} {[%emt 00:00:07]} O-O {[%clk 00:09:01]} {[%emt 00:00:18]}
13. Ne5 {[%clk 00:11:31]} {[%emt 00:00:06]} Nxe5 {[%clk 00:07:41]} {[%emt
00:01:31]} 14. fxe5 {[%clk 00:11:39]} {[%emt 00:00:02]} Bg5 {[%clk 00:06:35]}
{[%emt 00:01:17]} 15. Nf3 {[%clk 00:11:47]} {[%emt 00:00:02]} Bb7 {[%clk
00:06:42]} {[%emt 00:00:03]} 16. Nxg5 {[%clk 00:11:46]} {[%emt 00:00:11]} Qxg5
{[%clk 00:06:51]} {[%emt 00:00:02]} 17. Rf2 {[%clk 00:11:53]} {[%emt 00:00:03]}
Rac8 {[%clk 00:06:46]} {[%emt 00:00:15]} 18. Raf1 {[%clk 00:11:59]} {[%emt
00:00:02]} c4 {[%clk 00:06:50]} {[%emt 00:00:08]} 19. Bb1 {[%clk 00:12:03]}
{[%emt 00:00:06]} b5 {[%clk 00:06:59]} {[%emt 00:00:02]} 20. Kg2 {[%clk
00:12:07]} {[%emt 00:00:05]} a5 {[%clk 00:07:03]} {[%emt 00:00:06]} 21. h4
{[%clk 00:12:03]} {[%emt 00:00:13]} Qe7 {[%clk 00:07:11]} {[%emt 00:00:02]} 22.
Qh5 {[%clk 00:12:09]} {[%emt 00:00:03]} b4 {[%clk 00:06:55]} {[%emt 00:00:27]}
23. g4 {[%clk 00:12:14]} {[%emt 00:00:05]} bxc3 {[%clk 00:06:46]} {[%emt
00:00:20]} 24. bxc3 {[%clk 00:12:23]} {[%emt 00:00:01]} Rc7 {[%clk 00:06:51]}
{[%emt 00:00:04]} 25. g5 {[%clk 00:12:31]} {[%emt 00:00:01]} hxg5 {[%emt
00:00:09]} 26. Qh7# {[%clk 00:12:31]} {[%emt 00:00:01]} Ba8 {[%clk 00:06:13]}
1-0

[Event "Couzeix rapide 9 rondes cadences multiples"]
[Site "Couzeix Chess Club, France"]
[Date "2019.03.10"]
[Round "8.4"]
[White "Owen, Michael"]
[Black "Jackson, Edgar"]
[Result "0-1"]
[TimeControl "5'+10''pm,  7'+10''pm, 10'+10''pm,"]
[WhiteElo "1693"]
[BlackElo "1701"]

1. Nf3 {[%clk 00:10:18]} {[%emt 00:00:01]} Nf6 {[%clk 00:10:19]} {[%emt
00:00:01]} 2. d4 {[%clk 00:10:26]} {[%emt 00:00:03]} e6 {[%clk 00:10:22]}
{[%emt 00:00:07]} 3. e3 {[%clk 00:10:34]} {[%emt 00:00:01]} b6 {[%clk
00:10:30]} {[%emt 00:00:03]} 4. b3 {[%clk 00:10:38]} {[%emt 00:00:06]} Bb7
{[%clk 00:10:32]} {[%emt 00:00:07]} 5. Bb2 {[%clk 00:10:46]} {[%emt 00:00:03]}
c5 {[%clk 00:10:28]} {[%emt 00:00:14]} 6. Nbd2 {[%clk 00:10:48]} {[%emt
00:00:07]} Be7 {[%clk 00:10:10]} {[%emt 00:00:28]} 7. Bd3 {[%clk 00:10:55]}
{[%emt 00:00:03]} cxd4 {[%clk 00:10:09]} {[%emt 00:00:10]} 8. exd4 {[%clk
00:11:03]} {[%emt 00:00:02]} d5 {[%clk 00:09:43]} {[%emt 00:00:36]} 9. O-O
{[%clk 00:11:07]} {[%emt 00:00:06]} O-O {[%clk 00:09:52]} {[%emt 00:00:02]} 10.
Qe2 {[%clk 00:11:06]} {[%emt 00:00:11]} Nbd7 {[%clk 00:09:40]} {[%emt
00:00:21]} 11. Ne5 {[%clk 00:10:55]} {[%emt 00:00:21]} Rc8 {[%clk 00:09:33]}
{[%emt 00:00:18]} 12. f4 {[%clk 00:10:49]} {[%emt 00:00:16]} Re8 {[%clk
00:07:32]} {[%emt 00:02:11]} 13. g4 {[%clk 00:10:13]} {[%emt 00:00:46]} Bd6
{[%clk 00:06:00]} {[%emt 00:01:41]} 14. g5 {[%clk 00:09:48]} {[%emt 00:00:36]}
Ne4 {[%clk 00:06:09]} {[%emt 00:00:02]} 15. Bxe4 {[%clk 00:08:39]} {[%emt
00:01:19]} dxe4 {[%clk 00:06:17]} {[%emt 00:00:02]} 16. Nxe4 {[%clk 00:08:43]}
{[%emt 00:00:06]} Bxe4 {[%clk 00:05:59]} {[%emt 00:00:27]} 17. Qxe4 {[%clk
00:08:51]} {[%emt 00:00:02]} Nf8 {[%clk 00:04:50]} {[%emt 00:01:20]} 18. Rf3
{[%clk 00:06:48]} {[%emt 00:02:13]} f6 {[%clk 00:04:39]} {[%emt 00:00:20]} 19.
Nc4 {[%clk 00:06:12]} {[%emt 00:00:46]} Bb8 {[%clk 00:04:17]} {[%emt 00:00:33]}
20. Rd1 {[%clk 00:05:44]} {[%emt 00:00:38]} fxg5 {[%clk 00:03:51]} {[%emt
00:00:36]} 21. Ne5 {[%clk 00:04:35]} {[%emt 00:01:19]} gxf4 {[%clk 00:03:03]}
{[%emt 00:00:58]} 22. Rxf4 {[%clk 00:03:26]} {[%emt 00:01:19]} Bxe5 {[%clk
00:02:47]} {[%emt 00:00:26]} 23. Rxf8+ {[%clk 00:03:06]} {[%emt 00:00:29]} Rxf8
{[%clk 00:02:30]} {[%emt 00:00:26]} 24. Qxe5 {[%clk 00:03:13]} {[%emt
00:00:03]} Qd5 {[%clk 00:02:30]} {[%emt 00:00:10]} 25. Qxd5 {[%clk 00:02:55]}
{[%emt 00:00:30]} exd5 {[%clk 00:02:39]} 26. Re1 {[%clk 00:03:03]} {[%emt
00:00:01]} Rxc2 {[%clk 00:02:41]} {[%emt 00:00:09]} 0-1